bitfinex/quotes_BTCUSD_20251202
["timestamp","ask_amount","ask_price","bid_price","bid_amount"]
[1764687154955,0.02358,89166.0,89165.0,0.022488]
[1764687155171,0.02358,89166.0,89165.0,0.02286863]
[1764687155705,0.0679,89178.0,89175.0,0.0112139]
[1764687155706,0.06252299,89177.0,89175.0,0.0112139]
[1764687155907,0.06252299,89177.0,89176.0,0.022488]
[1764687156113,0.06252299,89177.0,89165.0,0.00038063]
[1764687156114,0.01121428,89172.0,89165.0,0.00038063]
[1764687156228,0.01121415,89173.0,89165.0,0.00038063]
[1764687156427,0.01121415,89173.0,89172.0,0.022488]
[1764687156680,0.0112139,89175.0,89174.0,0.022488]
[1764687156681,0.06252299,89175.0,89174.0,0.022488]
[1764687157140,0.06252299,89175.0,89173.0,0.022488]
[1764687157141,0.06252299,89174.0,89173.0,0.022488]
[1764687157253,0.2868036,89174.0,89173.0,0.022488]
[1764687157465,0.33691107,89174.0,89173.0,0.022488]
[1764687157866,0.22430018,89167.0,89165.0,0.00138063]
[1764687158090,0.01121428,89172.0,89171.0,0.022488]
[1764687158382,0.01121214,89189.0,89172.0,0.022488]
[1764687158590,0.11065299,89172.0,89171.0,0.022488]
[1764687158795,0.33493864,89172.0,89171.0,0.022488]
[1764687159011,0.22430074,89166.0,89165.0,0.00038063]
[1764687159330,0.22430074,89166.0,89165.0,0.00138063]
[1764687159548,0.28682373,89166.0,89165.0,0.00138063]
[1764687159704,0.33632373,89166.0,89165.0,0.02286863]
[1764687160106,0.11202299,89166.0,89165.0,0.02286863]
[1764687160313,0.06252299,89166.0,89165.0,0.04870773]
[1764687160515,0.11202299,89166.0,89165.0,0.02286863]
[1764687161500,0.06071365,89177.0,89171.0,0.022488]
[1764687161720,0.06071365,89177.0,89170.0,0.022488]
[1764687161721,0.06252299,89171.0,89170.0,0.022488]
[1764687161946,0.06252299,89171.0,89165.0,0.00138063]
[1764687161947,0.04901,89166.0,89165.0,0.00138063]
[1764687162119,0.04901,89166.0,89120.0,0.49444687]
[1764687162120,0.28682283,89167.0,89138.0,0.022488]
[1764687162121,0.01121818,89141.0,89138.0,0.022488]
[1764687162337,0.01121818,89141.0,89137.0,0.01121868]
[1764687162338,0.01121818,89141.0,89137.0,0.022488]
[1764687162339,0.01121855,89138.0,89137.0,0.022488]
[1764687162539,0.01121855,89138.0,89137.0,0.02260172]
[1764687162540,0.12324154,89138.0,89137.0,0.02260172]
[1764687162762,0.0184,89142.0,89137.0,0.02260172]
[1764687162763,0.0495,89163.0,89155.0,0.01121642]
[1764687163028,0.06252299,89160.0,89159.0,0.022488]
[1764687163226,0.11202299,89160.0,89159.0,0.25354172]
[1764687163437,0.13042299,89160.0,89159.0,0.01795128]
[1764687163636,0.06252299,89159.0,89155.0,0.01121642]
[1764687163833,0.11202299,89159.0,89156.0,0.03370429]
[1764687164077,0.06252299,89157.0,89155.0,0.01121642]
[1764687164281,0.2868514,89155.0,89154.0,0.022488]
[1764687164490,0.06252299,89142.0,89141.0,0.022488]
[1764687164693,0.06252299,89142.0,89113.0,0.14107]
[1764687164694,0.06252299,89139.0,89136.0,0.01121881]
[1764687164869,0.06252299,89139.0,89138.0,0.022488]
[1764687165056,0.01836,89142.0,89136.0,0.23559486]
[1764687165057,0.06252299,89140.0,89139.0,0.022488]
[1764687165473,0.08707299,89141.0,89140.0,0.022488]
[1764687166163,0.08707299,89141.0,89138.0,0.001]
[1764687166164,0.14779117,89141.0,89138.0,0.001]
[1764687166399,0.06252299,89139.0,89138.0,0.023488]
[1764687166603,0.06252299,89139.0,89138.0,0.001]
[1764687166809,0.28689418,89138.0,89137.0,0.02260172]
[1764687167032,0.33639418,89138.0,89137.0,0.02260172]
[1764687167232,0.33639418,89138.0,89137.0,0.00011372]
[1764687168221,0.11202299,89138.0,89137.0,0.00011372]
[1764687168756,0.13038299,89138.0,89137.0,0.00011372]
[1764687169169,0.13087299,89138.0,89137.0,0.00011372]
[1764687170073,0.11251299,89138.0,89137.0,0.00011372]
[1764687170255,0.13087299,89138.0,89137.0,0.00011372]
[1764687170680,0.11251299,89138.0,89137.0,0.00011372]
[1764687170921,0.11251299,89138.0,89137.0,0.02260172]
[1764687170922,0.13087299,89138.0,89137.0,0.02260172]
[1764687171467,0.13087299,89138.0,89137.0,0.00011372]
[1764687172123,0.13087299,89138.0,89111.0,0.01122195]
[1764687172303,0.06252299,89115.0,89114.0,0.022488]
[1764687172506,0.06252299,89118.0,89114.0,0.27383258]
[1764687172686,0.06252299,89118.0,89117.0,0.022488]
[1764687173091,0.13682299,89118.0,89117.0,0.022488]
[1764687173356,0.13682299,89118.0,89116.0,0.022488]
[1764687173515,0.06252299,89114.0,89109.0,0.01122221]
[1764687173713,0.06301299,89114.0,89113.0,0.022488]
[1764687173913,0.06301299,89114.0,89113.0,0.24692214]
[1764687173914,0.00049,89114.0,89113.0,0.24692214]
[1764687174247,0.00049,89114.0,89113.0,0.25367982]
[1764687174536,0.0495,89114.0,89113.0,0.25367982]
[1764687175213,0.06252299,89116.0,89115.0,0.2469171]
[1764687175585,0.11203299,89116.0,89115.0,0.2469171]
[1764687176229,0.11203299,89116.0,89115.0,0.022488]
[1764687176791,0.35477969,89116.0,89113.0,0.0122217]
[1764687177024,0.06301299,89114.0,89113.0,0.2356554]
[1764687177229,0.06301299,89114.0,89113.0,0.2581434]
[1764687177546,0.06301299,89114.0,89110.0,0.01142208]
[1764687177547,0.06301299,89114.0,89110.0,0.0002]
[1764687177548,0.28696217,89111.0,89110.0,0.0002]
[1764687177761,0.33597217,89111.0,89110.0,0.0002]
[1764687177962,0.33695217,89111.0,89110.0,0.0002]
[1764687178097,0.35527217,89111.0,89110.0,0.0002]
[1764687178791,0.35527217,89111.0,89110.0,0.022688]
[1764687179003,0.35527217,89111.0,89110.0,0.0002]
[1764687179880,0.35527217,89111.0,89110.0,0.022688]
[1764687180083,0.35527217,89111.0,89110.0,0.0002]
[1764687180791,0.35527217,89111.0,89095.0,0.22447947]
[1764687180792,0.35527217,89111.0,89082.0,0.022488]
[1764687180793,0.29825819,89083.0,89082.0,0.022488]
[1764687180970,0.04239296,89103.0,89092.0,0.224486]
[1764687181286,0.06252299,89096.0,89095.0,0.022488]
[1764687181796,0.06332299,89096.0,89095.0,0.022488]
[1764687182013,0.06332299,89096.0,89092.0,0.00011397]
[1764687182014,0.28700751,89093.0,89092.0,0.00011397]
[1764687182223,0.28700751,89093.0,89070.0,0.0004]
[1764687182224,0.28704531,89078.0,89070.0,0.0004]
[1764687182455,0.01122599,89079.0,89070.0,0.0004]
[1764687182456,0.28706296,89071.0,89070.0,0.0004]
[1764687182655,0.33656296,89071.0,89070.0,0.0004]
[1764687183617,0.33656296,89071.0,89060.0,0.0004]
[1764687183618,0.28708817,89061.0,89060.0,0.0004]
[1764687183817,0.28713772,89042.0,89041.0,0.022488]
[1764687184015,0.30545772,89042.0,89041.0,0.00038054]
[1764687184211,0.37925772,89042.0,89041.0,0.00038054]
[1764687184787,0.01832,89042.0,89041.0,0.00038054]
[1764687184988,0.13034299,89042.0,89041.0,0.00038054]
[1764687185195,0.06252299,89042.0,89041.0,0.02286854]
[1764687185396,0.08084299,89042.0,89041.0,0.05102808]
[1764687185816,0.06252299,89042.0,89041.0,0.05102808]
[1764687186046,0.13034299,89042.0,89041.0,0.00038054]
[1764687186256,0.13034299,89042.0,89041.0,0.02286854]
[1764687186478,0.13034299,89042.0,89041.0,0.00038054]
[1764687186479,0.11202299,89042.0,89041.0,0.00038054]
[1764687186680,0.08084299,89042.0,89041.0,0.02386854]
[1764687186827,0.13034299,89042.0,89041.0,0.02386854]
[1764687187023,0.13034299,89042.0,89041.0,0.00138054]
[1764687187237,0.13034299,89042.0,89041.0,0.00038054]
[1764687187441,0.13034299,89042.0,89041.0,0.02286854]
[1764687188085,0.06252299,89042.0,89041.0,0.05102785]
[1764687188239,0.08080299,89042.0,89041.0,0.24748416]
[1764687188695,0.06252299,89042.0,89041.0,0.24748416]
[1764687188917,0.02455,89045.0,89044.0,0.24709605]
[1764687189216,0.10535299,89045.0,89044.0,0.022488]
[1764687189400,0.04283,89045.0,89044.0,0.022488]
[1764687189564,0.0112304,89044.0,89041.0,0.00038054]
[1764687189757,0.09233,89045.0,89044.0,0.022488]
[1764687189986,0.15485299,89045.0,89044.0,0.022488]
[1764687190388,0.15485299,89045.0,89044.0,0.023488]
[1764687190901,0.15485299,89045.0,89044.0,0.24809605]
[1764687191138,0.15485299,89045.0,89044.0,0.29881422]
[1764687191139,0.10535299,89045.0,89044.0,0.29881422]
[1764687191517,0.10535299,89045.0,89044.0,0.001]
[1764687191518,0.15485299,89045.0,89044.0,0.001]
[1764687191922,0.15485299,89045.0,89044.0,0.023488]
[1764687192127,0.08756299,89045.0,89044.0,0.023488]
[1764687192271,0.10535299,89045.0,89044.0,0.023488]
[1764687192476,0.15485299,89045.0,89044.0,0.023488]
[1764687193289,0.10535299,89045.0,89044.0,0.022488]
[1764687193491,0.06252299,89044.0,89043.0,0.24709798]
[1764687193711,0.01828,89044.0,89043.0,0.24709798]
[1764687193911,0.08080299,89044.0,89043.0,0.24709798]
[1764687194120,0.13030299,89044.0,89043.0,0.022488]
[1764687194292,0.06252299,89043.0,89042.0,0.022488]
[1764687194492,0.08080299,89044.0,89043.0,0.22461058]
[1764687194707,0.13030299,89044.0,89043.0,0.023488]
[1764687194964,0.06252299,89044.0,89043.0,0.023488]
[1764687195166,0.08080299,89044.0,89043.0,0.022488]
[1764687195367,0.08707299,89045.0,89044.0,0.022488]
[1764687195545,0.28713164,89044.0,89041.0,0.02286854]
[1764687195844,0.06252299,89042.0,89041.0,0.00038054]
[1764687196142,0.08129299,89042.0,89041.0,0.02286854]
[1764687196317,0.13030299,89042.0,89041.0,0.00038054]
[1764687196486,0.13030299,89042.0,89041.0,0.02286854]
[1764687196688,0.13120311,89042.0,89041.0,0.02286854]
[1764687197580,0.08129299,89042.0,89041.0,0.02286854]
[1764687197909,0.08129299,89042.0,89041.0,0.02478562]
[1764687198093,0.35491609,89042.0,89041.0,0.02578562]
[1764687198336,0.08129299,89042.0,89041.0,0.02578562]
[1764687198568,0.08080299,89042.0,89041.0,0.27785097]
[1764687198929,0.08080299,89042.0,89041.0,0.27885097]
[1764687199131,0.06252299,89042.0,89041.0,0.27885097]
[1764687199526,0.08080299,89042.0,89041.0,0.27885097]
[1764687199962,0.08080299,89042.0,89041.0,0.05423535]
[1764687200363,0.08170311,89042.0,89041.0,0.02578562]
[1764687200564,0.08170311,89042.0,89041.0,0.25040124]
[1764687200771,0.08080299,89042.0,89041.0,0.25040124]
[1764687201285,0.06252299,89042.0,89041.0,0.25040124]
[1764687202743,0.06252299,89042.0,89041.0,0.24940124]
[1764687202876,0.06252299,89042.0,89041.0,0.34513779]
[1764687203693,0.02455,89045.0,89044.0,0.24709605]
[1764687203941,0.01122725,89069.0,89044.0,0.24709605]
[1764687203942,0.01122662,89074.0,89069.0,0.01122725]
[1764687204194,0.01122662,89074.0,89044.0,0.065]
[1764687204195,0.01122498,89087.0,89080.0,0.01122586]
[1764687204381,0.22450919,89084.0,89081.0,0.02581974]
[1764687204582,0.22450919,89084.0,89056.0,0.09627]
[1764687204583,0.22450919,89084.0,89076.0,0.022488]
[1764687204584,0.01122611,89078.0,89076.0,0.022488]
[1764687204814,0.01122699,89071.0,89070.0,0.022488]
[1764687204977,0.01122699,89071.0,89064.0,0.022488]
[1764687204978,0.0112275,89067.0,89064.0,0.022488]
[1764687205198,0.11202299,89065.0,89064.0,0.022488]
[1764687206079,0.02455,89077.0,89076.0,0.022488]
[1764687206288,0.24907484,89077.0,89076.0,0.022488]
[1764687206490,0.07405,89077.0,89076.0,0.022488]
[1764687206954,0.08707299,89077.0,89076.0,0.022488]
[1764687207080,0.13657299,89077.0,89076.0,0.022488]
[1764687207505,0.36199795,89077.0,89076.0,0.022488]
[1764687207719,0.36109783,89077.0,89076.0,0.022488]
[1764687208922,0.13657299,89077.0,89076.0,0.023488]
[1764687209096,0.36199795,89077.0,89076.0,0.023488]
[1764687209302,0.36109783,89077.0,89076.0,0.023488]
[1764687209475,0.36109783,89077.0,89076.0,0.022488]
[1764687210091,0.06252299,89063.0,89059.0,0.03371651]
[1764687210312,0.06252299,89061.0,89060.0,0.25828166]
[1764687210727,0.28709321,89059.0,89058.0,0.022488]
[1764687210950,0.33659321,89059.0,89058.0,0.022488]
[1764687211169,0.11202299,89059.0,89058.0,0.24706075]
[1764687211378,0.06252299,89065.0,89061.0,0.01122825]
[1764687211745,0.07375036,89068.0,89067.0,0.022488]
[1764687211924,0.07375036,89068.0,89060.0,0.01122838]
[1764687211925,0.06252299,89062.0,89057.0,0.01122876]
[1764687212141,0.06252299,89060.0,89057.0,0.0340973]
[1764687212369,0.06252299,89060.0,89057.0,0.0116093]
[1764687212512,0.06252299,89060.0,89059.0,0.022488]
[1764687212916,0.23579353,89061.0,89060.0,0.2470557]
[1764687212917,0.06252299,89061.0,89060.0,0.2470557]
[1764687213341,0.11202299,89061.0,89060.0,0.2470557]
[1764687213603,0.0102,89063.0,89061.0,0.22456518]
[1764687213604,0.06252299,89062.0,89061.0,0.22456518]
[1764687213776,0.06252299,89062.0,89061.0,0.24705318]
[1764687214069,0.11202299,89062.0,89061.0,0.24705318]
[1764687214448,0.06252299,89062.0,89061.0,0.32232496]
[1764687214770,0.11202299,89062.0,89061.0,0.24705318]
[1764687214974,0.22456518,89061.0,89059.0,0.001]
[1764687215215,0.28799081,89060.0,89059.0,0.001]
[1764687215420,0.28709574,89058.0,89057.0,0.00038054]
[1764687215614,0.30533574,89058.0,89057.0,0.02286854]
[1764687215753,0.35483574,89058.0,89057.0,0.02429848]
[1764687216545,0.35483574,89058.0,89057.0,0.02529848]
[1764687216766,0.35483574,89058.0,89057.0,0.00281048]
[1764687218482,0.67783574,89058.0,89057.0,0.00181048]
[1764687218657,0.67783574,89058.0,89020.0,0.0002]
[1764687218659,0.01123153,89035.0,89020.0,0.0002]
[1764687218861,0.01123153,89035.0,89032.0,7.423e-05]
[1764687218862,0.28764879,89033.0,89032.0,7.423e-05]
[1764687219203,0.28718908,89021.0,89020.0,0.0002]
[1764687219408,0.35492908,89021.0,89020.0,0.00031423]
[1764687220167,0.11202299,89021.0,89020.0,0.00031423]
[1764687220400,0.08076299,89021.0,89020.0,0.02280223]
[1764687220614,0.08076299,89021.0,89020.0,0.09473088]
[1764687220836,0.13026299,89021.0,89020.0,0.02280223]
[1764687221048,0.13026299,89021.0,89020.0,0.00031423]
[1764687221508,0.11202299,89021.0,89020.0,0.00031423]
[1764687221744,0.13026299,89021.0,89020.0,0.00031423]
[1764687221958,0.35492908,89021.0,89020.0,0.00031423]
[1764687222427,0.13026299,89021.0,89020.0,0.24747084]
[1764687222879,0.08076299,89021.0,89020.0,0.24747084]
[1764687223094,0.13026299,89021.0,89020.0,0.00131423]
[1764687223292,0.13026299,89021.0,89020.0,0.02380223]
[1764687223488,0.11202299,89021.0,89020.0,0.02380223]
[1764687223730,0.08076299,89021.0,89020.0,0.09820222]
[1764687223929,0.13026299,89021.0,89020.0,0.02280223]
[1764687224130,0.08076299,89021.0,89020.0,0.02280223]
[1764687224329,0.06252299,89021.0,89020.0,0.02280223]
[1764687224742,0.11202299,89021.0,89020.0,0.02280223]
[1764687225800,0.06252299,89021.0,89020.0,0.02380223]
[1764687226526,0.11202299,89021.0,89020.0,0.02380223]
[1764687227523,0.11202299,89021.0,89020.0,0.00131423]
[1764687227945,0.11202299,89021.0,89020.0,0.02380223]
[1764687228172,0.11202299,89021.0,89020.0,0.00131423]
[1764687228375,0.11202299,89021.0,89020.0,0.02380223]
[1764687228797,0.11202299,89021.0,89020.0,0.02728649]
[1764687229038,0.11202299,89021.0,89020.0,0.04977449]
[1764687229039,0.13026299,89021.0,89020.0,0.04977449]
[1764687229178,0.08076299,89021.0,89020.0,0.04877449]
[1764687229383,0.00090012,89032.0,89030.0,0.03372016]
[1764687229586,0.00090012,89032.0,89030.0,0.02810655]
[1764687229587,0.01824,89031.0,89030.0,0.02810655]
[1764687229904,0.13026299,89031.0,89030.0,0.02810655]
[1764687230076,0.35490384,89031.0,89030.0,0.02810655]
[1764687230278,0.35490384,89031.0,89020.0,0.02628649]
[1764687230279,0.22466609,89021.0,89020.0,0.00131423]
[1764687230481,0.3370992,89021.0,89020.0,0.00131423]
[1764687230711,0.33619908,89021.0,89020.0,0.00131423]
[1764687231061,0.33619908,89021.0,89020.0,0.00031423]
[1764687231264,0.33619908,89021.0,89020.0,0.02280223]
[1764687231491,0.11153299,89021.0,89020.0,0.02280223]
[1764687231622,0.11243311,89021.0,89020.0,0.02280223]
[1764687231807,0.10838418,89021.0,89020.0,0.02280223]
[1764687232421,0.10838418,89021.0,89020.0,0.00031423]
[1764687233088,0.10838418,89021.0,89020.0,0.02280223]
[1764687233663,0.10838418,89021.0,89020.0,0.00031423]
[1764687233867,0.04496107,89021.0,89020.0,0.00031423]
[1764687234168,0.04496107,89021.0,89020.0,0.02280223]
[1764687234391,0.04586119,89021.0,89020.0,0.02280223]
[1764687235009,0.10838418,89021.0,89020.0,0.02280223]
[1764687235237,0.1906915,89021.0,89020.0,0.00709492]
[1764687235453,0.1906915,89021.0,88993.0,0.04785]
[1764687235454,0.06252299,88999.0,88993.0,0.04785]
[1764687235700,0.323,89020.0,88993.0,0.04785]
[1764687235701,0.0205,89015.0,88998.0,0.06521]
[1764687235911,0.0205,89015.0,89005.0,0.01123532]
[1764687235912,0.06252299,89012.0,89005.0,0.01123532]
[1764687236122,0.07375768,89010.0,89005.0,0.03483101]
[1764687236328,0.07375768,89010.0,89009.0,0.0224867]
[1764687236584,0.07375768,89010.0,89005.0,0.02359569]
[1764687236585,0.06252299,89008.0,89005.0,0.03483101]
[1764687236783,0.06252299,89008.0,89007.0,0.0224867]
[1764687236961,0.01123469,89010.0,89007.0,0.05067417]
[1764687237190,0.298454,89010.0,89009.0,0.0224867]
[1764687237828,0.298454,89010.0,89007.0,0.05067417]
[1764687237829,0.06252299,89009.0,89008.0,0.0224867]
[1764687238033,0.06252299,89010.0,89007.0,0.28660863]
[1764687238245,0.06252299,89010.0,89009.0,0.0224867]
[1764687238456,0.11202299,89010.0,89009.0,0.0224867]
[1764687239091,0.11251299,89010.0,89009.0,0.0224867]
[1764687239857,0.34844309,89010.0,89004.0,0.01123545]
[1764687240060,0.11202299,89005.0,89004.0,0.03372215]
[1764687240273,0.06252299,89002.0,88997.0,0.0224867]
[1764687240477,0.15351299,88998.0,88997.0,0.0224867]
[1764687240811,0.15351299,88998.0,88991.0,0.01123709]
[1764687240812,0.15351299,88998.0,88974.0,0.224783]
[1764687240813,0.01123848,88980.0,88974.0,0.224783]
[1764687240957,0.01123848,88980.0,88971.0,0.01123961]
[1764687240958,0.06252299,88974.0,88971.0,0.01123961]
[1764687241160,0.06252299,88974.0,88968.0,0.01123999]
[1764687241161,0.06252299,88971.0,88969.0,0.0224867]
[1764687241440,0.06252299,88969.0,88967.0,0.22480095]
[1764687241638,0.06255,88970.0,88951.0,0.22484225]
[1764687241639,0.06252299,88966.0,88954.0,0.22483338]
[1764687241839,0.01824,88968.0,88954.0,0.01124176]
[1764687241840,0.09605299,88957.0,88954.0,0.01124176]
[1764687242071,0.14766299,88957.0,88956.0,0.07020365]
[1764687242241,0.03337,88957.0,88956.0,0.02295792]
[1764687243136,0.03114,88972.0,88971.0,0.0224867]
[1764687243359,0.11190299,88972.0,88971.0,0.0224867]
[1764687243495,0.14316299,88972.0,88971.0,0.0224867]
[1764687243693,0.14316299,88972.0,88969.0,0.01223987]
[1764687243694,0.44939662,89009.0,88969.0,0.01223987]
[1764687243695,0.02844,88998.0,88969.0,0.001]
[1764687243913,0.22463116,89035.0,89017.0,0.0112338]
[1764687244097,0.49731367,89050.0,89018.0,0.22467366]
[1764687244098,0.27415495,89026.0,89018.0,0.22467366]
[1764687244319,0.01123216,89030.0,89019.0,0.04832431]
[1764687244320,0.01824,89024.0,89019.0,0.04832431]
[1764687244686,0.00090012,89023.0,89019.0,0.0224867]
[1764687244884,0.01123317,89022.0,89019.0,0.0224867]
[1764687245079,0.01824,89024.0,89019.0,0.0224867]
[1764687245080,0.09679311,89020.0,89019.0,0.0224867]
[1764687245337,0.03427012,89020.0,89019.0,0.0224867]
[1764687245564,0.03427012,89020.0,89008.0,0.22469676]
[1764687245565,0.22468874,89013.0,89012.0,0.0224867]
[1764687245694,0.05089012,89013.0,89012.0,0.0224867]
[1764687245913,0.11341311,89013.0,89012.0,0.0224867]
[1764687246323,0.13165311,89013.0,89012.0,0.0224867]
[1764687246569,0.13165311,89013.0,88994.0,0.01123671]
[1764687246570,0.13165311,89013.0,88994.0,0.0224867]
[1764687246571,0.06252299,88995.0,88994.0,0.0224867]
[1764687246781,0.01123608,88999.0,88996.0,0.0224867]
[1764687246782,0.06252299,88997.0,88996.0,0.0224867]
[1764687247000,0.23593709,89007.0,88996.0,0.0224867]
[1764687247001,0.08287,89020.0,89017.0,0.0337205]
[1764687247207,0.08287,89020.0,89018.0,0.0224867]
[1764687247208,0.01824,89019.0,89018.0,0.0224867]
[1764687247412,0.06774,89019.0,89018.0,0.0224867]
[1764687247623,0.29241113,89019.0,89018.0,0.0224867]
[1764687247823,0.13026299,89019.0,89018.0,0.0224867]
[1764687248031,0.13026299,89019.0,89018.0,0.24716036]
[1764687248229,0.08125299,89019.0,89018.0,0.0234867]
[1764687248936,0.08076299,89019.0,89018.0,0.0234867]
[1764687249340,0.13075299,89019.0,89018.0,0.001]
[1764687249547,0.35632424,89019.0,89018.0,0.001]
[1764687249779,0.06252299,89019.0,89018.0,0.001]
[1764687249981,0.06252299,89019.0,89018.0,0.04605539]
[1764687249982,0.01824,89019.0,89018.0,0.04605539]
[1764687250182,0.06725,89019.0,89018.0,0.0234867]
[1764687250387,0.06725,89019.0,89018.0,0.0224867]
[1764687250593,0.06823,89019.0,89018.0,0.0224867]
[1764687250787,0.06823,89019.0,89012.0,0.0224867]
[1764687250788,0.23592252,89013.0,89012.0,0.0224867]
[1764687251000,0.01123418,89014.0,89013.0,0.0224867]
[1764687251196,0.29844167,89014.0,89013.0,0.07304507]
[1764687251437,0.29844167,89014.0,89003.0,0.2359452]
[1764687251438,0.01123608,88999.0,88990.0,0.23597917]
[1764687251660,0.01123608,88999.0,88969.0,0.04522]
[1764687251661,0.33625966,88997.0,88985.0,0.01123784]
[1764687251871,0.33625966,88997.0,88969.0,0.04522]
[1764687252076,0.33625966,88997.0,88994.0,0.0019186]
[1764687252285,0.33723966,88997.0,88994.0,0.0019186]
[1764687252496,0.33723966,88997.0,88980.0,0.01123848]
[1764687252708,0.33723966,88997.0,88992.0,0.0224867]
[1764687253338,0.35547966,88997.0,88995.0,0.0224867]
[1764687253759,0.11153299,88997.0,88995.0,0.0224867]
[1764687253965,0.08076299,88997.0,88996.0,0.02823225]
[1764687254197,0.23595908,88999.0,88996.0,0.02823225]
[1764687254404,0.01824,89001.0,89000.0,0.0224867]
[1764687254603,0.01824,89001.0,88996.0,0.24171033]
[1764687254604,0.04853,88997.0,88996.0,0.02923225]
[1764687254782,0.04853,88997.0,88996.0,0.00111429]
[1764687254983,0.11250299,88997.0,88996.0,0.00111429]
[1764687255187,0.11250299,88997.0,88996.0,0.00011429]
[1764687255732,0.06252299,88997.0,88996.0,0.00011429]
[1764687255915,0.01123545,89004.0,88996.0,0.00111429]
[1764687256057,0.01123545,89004.0,89003.0,0.0224867]
[1764687256263,0.22521667,88997.0,88996.0,0.02360099]
[1764687256500,0.28863978,88997.0,88996.0,0.02360099]
[1764687256702,0.30597966,88997.0,88996.0,0.02360099]
[1764687256905,0.08076299,88997.0,88996.0,0.02360099]
[1764687257142,0.23594277,89005.0,88996.0,0.02360099]
[1764687257143,0.23593977,89006.0,89003.0,0.01123557]
[1764687257262,0.01123519,89006.0,89005.0,0.0224867]
[1764687257664,0.06252299,89005.0,89004.0,0.0224867]
[1764687257885,0.06252299,89005.0,89004.0,0.02410058]
[1764687258085,0.06350299,89005.0,89004.0,0.02410058]
[1764687258281,0.11203299,89005.0,89004.0,0.02410058]
[1764687258489,0.11293311,89005.0,89004.0,0.02410058]
[1764687258684,0.11293311,89005.0,89004.0,0.00161388]
[1764687259102,0.06440311,89005.0,89004.0,0.02762009]
[1764687259302,0.00090012,89005.0,89004.0,0.05010679]
[1764687259515,0.323,89035.0,89019.0,0.24715783]
[1764687259516,0.01824,89024.0,89019.0,0.24715783]
[1764687259934,0.09589299,89020.0,89019.0,0.24715783]
[1764687260143,0.03337,89020.0,89019.0,0.24715783]
[1764687260340,0.23583918,89044.0,89019.0,0.24715783]
[1764687260341,0.00090012,89039.0,89030.0,0.01123216]
[1764687260547,0.03114,89040.0,89036.0,0.01123141]
[1764687260746,0.03114,89040.0,89038.0,0.0224867]
[1764687260747,0.00090012,89039.0,89038.0,0.0224867]
[1764687261148,0.03114,89040.0,89038.0,0.0224867]
[1764687261396,0.03114,89040.0,89037.0,0.23585537]
[1764687261648,0.00090012,89039.0,89038.0,0.24710822]
[1764687261818,0.03125391,89040.0,89039.0,0.0224867]
[1764687261819,0.00011391,89040.0,89039.0,0.0224867]
[1764687263699,0.01134481,89040.0,89039.0,0.0224867]
[1764687263964,0.00101403,89040.0,89039.0,0.0224867]
[1764687264140,0.00011391,89040.0,89039.0,0.11805626]
[1764687264345,0.00011391,89040.0,89039.0,0.60261626]
[1764687264921,0.00011391,89040.0,89039.0,0.323]
[1764687265136,0.00011391,89040.0,89039.0,0.001]
[1764687265385,0.00011391,89040.0,89039.0,0.16256]
[1764687265592,0.00011391,89040.0,89039.0,0.5080467]
[1764687265739,0.00011391,89040.0,89039.0,0.5070467]
[1764687265941,0.00011391,89040.0,89039.0,0.77027266]
[1764687266145,0.00011391,89040.0,89039.0,0.62227266]
[1764687266361,0.00011391,89040.0,89039.0,0.64051266]
[1764687266362,0.00111391,89040.0,89039.0,0.64051266]
[1764687267962,0.00011391,89040.0,89039.0,0.62227266]
[1764687268166,0.00011391,89040.0,89039.0,0.3454867]
[1764687268604,0.00011391,89040.0,89039.0,0.3474867]
[1764687268830,0.00011391,89040.0,89039.0,0.0244867]
[1764687269068,0.00060391,89040.0,89039.0,0.002]
[1764687269193,0.00011391,89040.0,89039.0,0.0244867]
[1764687269409,0.00011391,89040.0,89039.0,0.0224867]
[1764687269632,0.00011391,89040.0,89039.0,0.09436943]
[1764687269840,0.00011391,89040.0,89039.0,0.09536943]
[1764687270041,0.00011391,89040.0,89039.0,0.57992943]
[1764687270214,0.00011391,89040.0,89039.0,0.48263943]
[1764687270426,0.00011391,89040.0,89039.0,0.58047733]
[1764687270639,0.00011391,89040.0,89039.0,0.41891733]
[1764687271215,0.00011391,89040.0,89039.0,0.0240346]
[1764687271421,0.00011391,89040.0,89039.0,0.0230346]
[1764687271846,0.00011391,89040.0,89039.0,0.0240346]
[1764687273750,0.00011391,89040.0,89039.0,0.3470346]
[1764687275203,0.00011391,89040.0,89039.0,0.4990046]
[1764687275350,0.00011391,89040.0,89039.0,0.61423056]
[1764687275549,0.00011391,89040.0,89039.0,0.61523056]
[1764687276057,0.00011391,89040.0,89039.0,0.61423056]
[1764687276402,0.00011391,89040.0,89039.0,0.76223056]
[1764687276609,0.00011391,89040.0,89039.0,0.76323056]
[1764687277106,0.00090012,89081.0,89078.0,0.0224867]
[1764687277325,0.00049,89079.0,89078.0,0.0224867]
[1764687277541,0.011228,89063.0,89055.0,0.01122901]
[1764687277740,0.04939085,89081.0,89055.0,0.01122901]
[1764687277741,0.00090012,89062.0,89060.0,0.35671508]
[1764687277976,0.01952097,89081.0,89066.0,0.01122762]
[1764687278155,0.01122674,89073.0,89068.0,0.01122737]
[1764687278353,0.0495,89080.0,89074.0,0.0224867]
[1764687278564,0.0495,89080.0,89079.0,0.0224867]
[1764687279061,0.0495,89080.0,89073.0,0.01122674]
[1764687279062,0.08114384,89081.0,89080.0,0.0224867]
[1764687279258,0.08114384,89081.0,89080.0,0.05167813]
[1764687279407,0.13064384,89081.0,89080.0,0.02919143]
[1764687279606,0.13064384,89081.0,89043.0,0.09566]
[1764687279607,0.23577013,89070.0,89069.0,0.0224867]
[1764687279876,0.28706858,89069.0,89068.0,0.0224867]
[1764687280057,0.28706858,89069.0,89059.0,0.0224867]
[1764687280058,0.29831907,89060.0,89059.0,0.0224867]
[1764687280230,0.15218137,89060.0,89059.0,0.0224867]
[1764687280433,0.14185311,89060.0,89059.0,0.0505614]
[1764687280643,0.14185311,89060.0,89059.0,0.0224867]
[1764687281041,0.14095299,89060.0,89059.0,0.0224867]
[1764687281463,0.06252299,89059.0,89057.0,0.2358036]
[1764687281667,0.06269299,89059.0,89058.0,0.0224867]
[1764687281897,0.06252299,89059.0,89058.0,0.0224867]
[1764687282183,0.08076299,89074.0,89070.0,0.22454201]
[1764687282342,0.08076299,89074.0,89073.0,0.0224867]
[1764687282543,0.08076299,89074.0,89068.0,0.01122737]
[1764687282544,0.06252299,89070.0,89068.0,0.0224867]
[1764687282863,0.06252299,89069.0,89068.0,0.2470337]
[1764687283031,0.06252299,89069.0,89068.0,0.32113854]
[1764687283634,0.01824,89074.0,89073.0,0.0224867]
[1764687283635,0.01914012,89074.0,89073.0,0.0224867]
[1764687283867,0.01824,89074.0,89073.0,0.0224867]
[1764687284468,0.06774,89074.0,89073.0,0.0224867]
[1764687285010,0.13026299,89074.0,89073.0,0.0224867]